bitfinex-derivatives/quotes_ETHF0:USTF0_20241008
["timestamp","ask_amount","ask_price","bid_price","bid_amount"]
[1728379355835,6.84011,2425.7,2425.5,0.41233]
[1728379356741,6.84011,2425.7,2425.6,0.41233]
[1728379357137,6.4278,2425.7,2425.6,0.41233]
[1728379360040,1.45271167,2425.8,2425.2,1.03099]
[1728379360041,4.0028,2425.8,2425.3,1.03093]
[1728379360343,0.795,2425.8,2425.7,0.41231]
[1728379365550,7.2228,2425.8,2425.5,0.4144]
[1728379365945,7.63509,2425.8,2425.7,0.41231]
[1728379366147,7.2228,2425.8,2425.7,0.41231]
[1728379366746,4.015,2425.8,2425.7,0.41231]
[1728379366943,0.795,2425.8,2425.7,0.41231]
[1728379367144,4.0028,2425.8,2425.7,0.41231]
[1728379368446,5.4928,2425.8,2425.7,0.41231]
[1728379374156,2.285,2425.8,2425.7,0.41231]
[1728379374349,4.0028,2425.8,2425.7,0.41231]
[1728379374556,0.3977,2425.8,2425.7,0.41231]
[1728379379061,1.49,2425.9,2425.8,0.41229]
[1728379380561,1.8893,2426.0,2425.9,0.41228]
[1728379380763,1.49,2426.0,2425.9,0.41228]
[1728379380959,3.1303,2426.2,2426.1,0.41224]
[1728379381562,1.8893,2426.2,2426.1,0.41224]
[1728379381865,1.49,2426.2,2426.1,0.41224]
[1728379383054,1.8898,2426.2,2426.1,0.41224]
[1728379386459,2.69121,2426.6,2426.3,0.41221]
[1728379386460,1.49,2426.5,2426.3,0.41221]
[1728379386763,1.49,2426.5,2426.4,0.41219]
[1728379386764,1.9097,2426.5,2426.4,0.41219]
[1728379386964,0.4197,2426.5,2426.4,0.41219]
[1728379387163,1.892,2426.6,2426.1,2.52061]
[1728379387465,1.892,2426.6,2426.5,0.41217]
[1728379388857,0.402,2426.6,2426.5,0.41217]
[1728379389064,3.6275,2426.7,2426.6,0.41216]
[1728379389265,5.1175,2426.7,2426.6,0.41216]
[1728379389462,3.6275,2426.7,2426.6,0.41216]
[1728379389661,5.1175,2426.7,2426.6,0.41216]
[1728379390060,3.6275,2426.7,2426.6,0.41216]
[1728379391054,3.2078,2426.7,2426.6,0.41216]
[1728379391258,7.4388,2427.1,2426.6,11.6108]
[1728379391463,3.2078,2427.1,2427.0,0.41209]
[1728379394472,3.2078,2427.1,2427.0,1.44216828]
[1728379400472,3.2078,2427.1,2427.0,5.56216828]
[1728379404266,3.2078,2427.1,2427.0,1.44216828]
[1728379406775,3.61987,2427.1,2427.0,1.44216828]
[1728379407077,3.2078,2427.1,2427.0,1.44216828]
[1728379407275,3.61987,2427.1,2427.0,1.44216828]
[1728379407572,3.61987,2427.1,2427.0,1.03007828]
[1728379408180,7.73987,2427.1,2427.0,1.03007828]
[1728379408576,48.53987,2427.1,2427.0,1.03007828]
[1728379409978,7.3278,2427.1,2427.0,1.03007828]
[1728379410282,7.3278,2427.1,2427.0,1.44216828]
[1728379410481,3.2078,2427.1,2427.0,1.44216828]
[1728379410884,7.73987,2427.1,2427.0,1.03007828]
[1728379411279,7.9874832,2427.1,2427.0,1.03007828]
[1728379411584,3.8674832,2427.1,2427.0,1.03007828]
[1728379411785,3.4554132,2427.1,2427.0,1.03007828]
[1728379412388,3.8674832,2427.1,2427.0,1.03007828]
[1728379418990,7.9874832,2427.1,2427.0,1.03007828]
[1728379422902,7.9874832,2427.1,2427.0,0.77128918]
[1728379424003,3.8674832,2427.1,2427.0,0.77128918]
[1728379424406,7.9874832,2427.1,2427.0,0.77128918]
[1728379426004,3.8674832,2427.1,2427.0,0.77128918]
[1728379434611,3.8674832,2427.1,2427.0,1.19608918]
[1728379437409,3.8674832,2427.1,2427.0,1.62048918]
[1728379437410,3.4554132,2427.1,2427.0,1.62048918]
[1728379437714,3.2078,2427.1,2427.0,2.03257918]
[1728379438116,4.6978,2427.1,2427.0,1.62048918]
[1728379438616,5.1113,2427.1,2427.0,1.62048918]
[1728379439314,5.52337,2427.1,2427.0,0.77128918]
[1728379441118,9.64337,2427.1,2427.0,0.77128918]
[1728379441612,1.03028,2426.9,2426.3,0.096]
[1728379441916,4.6978,2426.5,2426.4,0.4179]
[1728379442117,4.6978,2426.5,2426.4,0.83009]
[1728379442316,4.6978,2426.5,2426.4,0.4179]
[1728379443817,5.52589,2426.5,2426.3,0.4209]
[1728379444008,1.8813,2426.4,2426.3,0.4209]
[1728379444211,1.8813,2426.4,2426.2,0.41222]
[1728379445015,1.8813,2426.4,2426.2,0.41221]
[1728379446716,1.8813,2426.4,2426.1,0.842]
[1728379446922,4.6978,2426.2,2426.1,0.4147]
[1728379447121,4.6978,2426.2,2426.1,0.82694]
[1728379447308,4.6978,2426.2,2426.1,0.4147]
[1728379448217,4.6978,2426.2,2426.1,0.82694]
[1728379448516,4.6978,2426.2,2426.1,0.4147]
[1728379449311,4.6978,2426.2,2426.1,0.8264]
[1728379449816,4.6978,2426.2,2426.1,0.4147]
[1728379450619,0.41224,2426.1,2425.9,0.7988]
[1728379450819,2.71026,2426.1,2425.9,0.7988]
[1728379451018,0.81897,2426.0,2425.8,0.4244]
[1728379451317,4.6978,2425.9,2425.8,0.4244]
[1728379452114,4.6978,2425.9,2425.8,0.83669]
[1728379452519,3.2078,2425.9,2425.8,0.83669]
[1728379453219,1.8967,2426.0,2425.9,0.41228]
[1728379454718,0.391,2426.1,2425.8,0.4244]
[1728379454919,6.5363716,2426.2,2426.0,0.41225]
[1728379455422,6.9485916,2426.2,2426.0,0.41225]
[1728379455722,6.5363716,2426.2,2426.0,0.41225]
[1728379456325,6.5363716,2426.2,2425.8,0.4244]
[1728379456326,1.49,2426.1,2425.8,0.4244]
[1728379456521,3.2078,2425.9,2425.8,0.83669]
[1728379457225,3.2078,2425.9,2425.8,0.4244]
[1728379457428,4.6978,2425.9,2425.8,0.4244]
[1728379457724,4.6978,2425.9,2425.7,0.4123]
[1728379457917,0.4009,2425.8,2425.7,0.4123]
[1728379458120,2.30319,2425.8,2425.6,1.60672]
[1728379458319,1.8909,2425.8,2425.6,1.60672]
[1728379458522,2.30319,2425.8,2425.6,1.60672]
[1728379458722,1.8909,2425.8,2425.6,1.60672]
[1728379458920,2.30319,2425.8,2425.6,1.60672]
[1728379461027,1.8909,2425.8,2425.6,1.60672]
[1728379461426,2.3032,2425.8,2425.6,1.1944]
[1728379461624,2.3032,2425.8,2425.6,1.60672]
[1728379461825,2.3032,2425.8,2425.6,1.1944]
[1728379462026,2.3032,2425.8,2425.5,0.41234]
[1728379462226,3.2078,2425.6,2425.5,0.41234]
[1728379469532,2.13425751,2425.8,2425.7,0.41231]
[1728379470030,0.64425751,2425.8,2425.7,0.41231]
[1728379470737,0.24335751,2425.8,2425.7,0.41231]
[1728379471030,6.2669,2425.9,2425.7,1.22841]
[1728379471425,6.67918,2425.9,2425.7,1.22841]
[1728379471623,6.2669,2425.9,2425.7,1.22841]
[1728379472934,6.51114405,2425.9,2425.7,1.22841]
[1728379473135,6.92342405,2425.9,2425.7,1.22841]
[1728379474331,6.51114405,2425.9,2425.7,1.22841]
[1728379475335,6.51114405,2425.9,2425.7,0.8161]
[1728379475536,6.51114405,2425.9,2425.8,0.41229]
[1728379475938,6.51114405,2425.9,2425.7,1.2284]
[1728379477137,3.45204405,2425.9,2425.8,0.41229]
[1728379477334,0.3887,2426.0,2425.7,0.8161]
[1728379477536,0.3887,2426.0,2425.9,0.41228]
[1728379479142,1.8787,2426.0,2425.9,0.41228]
[1728379480646,0.2451632,2426.1,2426.0,0.41226]
[1728379480945,1.8805,2426.2,2426.1,0.41224]
[1728379481140,1.49,2426.2,2426.1,0.41224]
[1728379481341,1.73943598,2426.2,2426.1,0.41224]
[1728379481541,0.8011,2426.4,2425.9,1.49]
[1728379481736,3.5978,2426.4,2426.3,0.41221]
[1728379481941,5.0878,2426.4,2426.3,0.41221]
[1728379485150,5.33520915,2426.4,2426.3,0.41221]
[1728379490749,4.6978,2426.4,2426.3,0.41221]
[1728379490939,3.2078,2426.4,2426.3,0.41221]
[1728379491552,3.2078,2426.4,2426.3,4.53381]
[1728379493549,1.49,2426.5,2426.4,0.41219]
[1728379493750,1.49,2426.5,2426.4,0.81619]
[1728379500158,5.0926,2426.7,2426.4,0.404]
[1728379500364,0.096,2426.9,2426.8,0.41212]
[1728379500557,5.0916,2427.0,2426.9,0.41211]
[1728379501867,5.34199667,2427.0,2426.7,0.394]
[1728379502063,3.85199667,2427.0,2426.9,0.41211]
[1728379502457,3.85199667,2427.0,2426.8,0.41211]
[1728379502652,1.49,2426.9,2426.8,0.41211]
[1728379505862,5.0916,2427.0,2426.9,0.41211]
[1728379507370,5.0916,2427.0,2426.7,0.41213]
[1728379507569,1.49,2426.8,2426.7,0.41213]
[1728379508064,1.8886,2426.8,2426.7,0.41213]
[1728379513673,5.0916,2427.0,2426.7,4.1208]
[1728379513974,0.4121,2427.1,2427.0,0.41209]
[1728379514172,0.415,2427.3,2427.2,0.41205]
[1728379518873,3.45996478,2427.4,2427.1,1.877]
[1728379519075,3.2078,2427.4,2427.3,0.41204]
[1728379519466,3.2078,2427.4,2427.3,4.53204]
[1728379520177,3.2078,2427.4,2427.3,10.53204]
[1728379520371,3.2078,2427.4,2427.3,4.53204]
[1728379522170,3.2078,2427.4,2427.3,10.53204]
[1728379522474,3.2078,2427.4,2427.3,4.53204]
[1728379522978,3.2078,2427.4,2427.3,0.41204]
[1728379523579,4.0024,2427.4,2427.3,0.41204]
[1728379523980,4.4103,2427.4,2427.3,0.41204]
[1728379524274,4.4103,2427.4,2426.7,1.03033]
[1728379524473,1.49,2427.2,2427.1,0.41207]
[1728379525579,4.82233,2427.4,2427.3,0.41204]
[1728379525580,4.4103,2427.4,2427.3,0.41204]
[1728379525780,6.31232,2427.4,2427.3,0.41204]
[1728379526174,5.9003,2427.4,2427.3,0.41204]
[1728379526681,6.15209725,2427.4,2427.3,0.41204]
[1728379527876,5.9003,2427.4,2427.3,0.41204]
[1728379528083,4.0024,2427.4,2427.3,0.41204]
[1728379530078,10.0096,2427.4,2426.3,4.197]
[1728379530280,1.49,2427.3,2426.7,2.29544]
[1728379530483,1.90204,2427.3,2427.1,0.41207]
[1728379531075,1.49,2427.3,2427.2,0.41205]
[1728379531572,1.49,2427.3,2426.7,2.29544]
[1728379531781,1.49,2427.3,2427.1,0.41206]
[1728379531979,0.41205,2427.2,2427.0,0.41208]
[1728379532476,0.4212,2427.1,2427.0,0.41208]
[1728379532674,1.9112,2427.1,2426.7,1.2651]
[1728379532877,0.8394,2427.0,2426.9,0.41211]
[1728379533275,0.4209,2427.0,2426.9,0.41211]
[1728379533477,0.4212,2427.1,2427.0,0.41209]
[1728379535980,1.9112,2427.1,2426.7,1.2651]
[1728379536378,5.119,2427.1,2426.7,1.2651]
[1728379536578,5.119,2427.1,2427.0,0.41209]
[1728379537285,5.119,2427.1,2426.7,1.2651]
[1728379537479,5.119,2427.1,2426.9,0.4121]
[1728379537883,5.119,2427.1,2426.9,0.41209]
[1728379538084,1.9112,2427.1,2427.0,0.41209]
[1728379539898,0.4212,2427.1,2427.0,0.41209]
[1728379540694,0.8394,2427.3,2426.9,1.49]
[1728379540995,1.2496,2427.3,2427.2,0.41205]
[1728379541397,3.2078,2427.4,2427.1,0.7891]
[1728379541694,3.618,2427.4,2427.3,0.41204]
[1728379541896,0.4268,2427.5,2427.3,4.12]
[1728379542098,0.4102,2427.4,2427.3,0.41204]
[1728379542490,0.4268,2427.5,2427.3,4.12]
[1728379542696,0.4268,2427.5,2427.4,0.81912]
[1728379543395,0.4268,2427.5,2427.4,0.41202]
[1728379544805,1.9002,2427.6,2427.2,0.4225]
[1728379544999,1.9002,2427.6,2427.5,0.412]
[1728379550299,6.0194,2427.6,2426.8,1.03031]
[1728379550496,6.0194,2427.6,2426.9,0.4039]
[1728379550497,1.49,2427.3,2426.9,0.4039]
[1728379550800,3.2078,2427.1,2427.0,0.41209]
[1728379551003,3.2078,2427.1,2426.9,0.4121]
[1728379551004,4.6978,2427.1,2426.9,0.4121]
[1728379551600,4.6978,2427.1,2427.0,0.41209]
[1728379552201,4.6978,2427.1,2426.7,0.4039]
[1728379552399,4.6978,2427.1,2426.9,0.4121]
[1728379552801,4.6978,2427.1,2427.0,0.41209]
[1728379553104,4.6978,2427.1,2426.8,0.41212]
[1728379553405,4.6978,2427.1,2426.9,0.41209]
[1728379553698,4.6978,2427.1,2427.0,0.41209]
[1728379553898,1.49,2427.1,2427.0,0.41209]
[1728379554101,4.6978,2427.1,2427.0,0.41209]
[1728379554497,4.6978,2427.1,2426.9,0.41209]
[1728379555304,5.10988,2427.1,2426.8,0.41211]
[1728379555506,5.10988,2427.1,2426.8,0.41212]
[1728379555806,4.6978,2427.1,2426.9,0.4121]
[1728379557100,5.10988,2427.1,2426.8,0.41212]
[1728379557308,1.49,2426.9,2426.7,0.4039]
[1728379557500,3.2078,2426.8,2426.6,0.41214]
[1728379557702,3.6258,2426.8,2426.6,0.41214]
[1728379557906,5.1158,2426.8,2426.4,1.49]
[1728379558105,5.1158,2426.8,2426.3,1.232]
[1728379558106,5.1158,2426.8,2426.6,0.41214]
[1728379559804,5.52792,2426.8,2426.6,0.41214]
[1728379560507,5.52792,2426.8,2426.3,2.722]
[1728379560708,5.1158,2426.8,2426.6,0.41216]
[1728379561107,5.35813545,2426.8,2426.6,0.41216]
[1728379562511,3.6258,2426.8,2426.7,0.41214]
[1728379562717,0.418,2426.8,2426.7,0.41214]
[1728379563913,3.6258,2426.8,2426.7,0.41214]
[1728379564404,0.418,2426.8,2426.7,0.41214]
[1728379564610,3.2078,2426.9,2426.8,0.41212]
[1728379564812,3.6027,2426.9,2426.8,0.41212]
[1728379572114,3.6027,2426.9,2426.6,1.9173]
[1728379572319,1.49,2426.8,2426.6,0.83944]
[1728379572714,0.4029,2426.7,2426.6,0.83944]
[1728379574121,1.49,2426.8,2426.7,0.41214]
[1728379575923,2.2878,2426.9,2426.6,0.4273]
[1728379576123,2.2878,2426.9,2426.8,0.41212]
[1728379576823,5.4956,2426.9,2426.8,0.41212]
[1728379577223,5.4956,2426.9,2426.6,0.4273]
[1728379577424,5.90771,2426.9,2426.7,0.41212]
[1728379578025,5.4956,2426.9,2426.6,0.4273]
[1728379578225,5.4956,2426.9,2426.7,0.41214]
[1728379578427,5.4956,2426.9,2426.6,0.41215]
[1728379578629,5.90772,2426.9,2426.7,0.41214]
[1728379579229,0.41215,2426.7,2426.5,0.41217]
[1728379579526,5.1132,2426.6,2426.5,0.41217]
[1728379579727,5.5316,2426.6,2426.5,0.41217]
[1728379579925,2.3238,2426.6,2426.5,0.41217]
[1728379580727,5.5316,2426.6,2426.5,0.41217]
[1728379581229,2.3238,2426.6,2426.5,0.41217]
[1728379581829,0.8338,2426.6,2426.5,0.41217]
[1728379582425,1.24596,2426.6,2426.5,0.41217]
[1728379582729,3.61996,2426.6,2426.5,0.41217]
[1728379584028,3.2078,2426.6,2426.5,0.41217]
[1728379584527,0.41215,2426.7,2426.5,0.41217]
[1728379584728,3.2078,2426.6,2426.5,0.41217]
[1728379584938,3.61996,2426.6,2426.4,1.22058]
[1728379585231,0.4198,2426.5,2426.4,1.22058]
[1728379585532,1.9098,2426.5,2426.4,0.41219]
[1728379585736,1.2049,2426.5,2426.4,0.41219]
[1728379586032,1.2049,2426.5,2426.4,0.82539]
[1728379586833,0.8103,2426.5,2426.4,0.82539]
[1728379587631,0.8103,2426.5,2426.4,1.24109]
[1728379587935,3.2078,2426.6,2426.5,0.41217]
[1728379591135,0.65209545,2426.7,2426.4,0.8289]
[1728379591334,0.65209545,2426.7,2426.6,0.41216]
[1728379594139,0.65209545,2426.7,2426.4,0.8289]
[1728379594438,3.2078,2426.6,2426.5,0.41217]
[1728379595139,4.6978,2426.6,2426.5,0.41217]
[1728379598535,4.6978,2426.6,2426.3,0.3942]
[1728379598742,4.6978,2426.6,2425.7,0.096]
[1728379598743,0.41219,2426.4,2426.2,0.41222]
[1728379598931,5.109,2426.3,2426.2,0.41222]
[1728379599135,5.516,2426.3,2426.2,0.41222]
[1728379599631,5.516,2426.3,2426.1,0.41223]
[1728379599939,5.516,2426.3,2426.0,0.807]
[1728379600141,5.516,2426.3,2426.2,0.41222]
[1728379602644,4.026,2426.3,2426.2,0.41222]
[1728379603244,4.43822,2426.3,2426.1,0.81873]
[1728379603545,4.026,2426.3,2426.2,0.41222]
[1728379611550,5.92821,2426.3,2426.1,0.81873]
[1728379611850,5.516,2426.3,2426.2,0.41222]
[1728379617153,0.41222,2426.2,2426.0,0.41225]
[1728379617359,0.41226,2426.0,2425.7,0.3944]
[1728379617557,1.9142,2425.9,2425.8,0.41228]
[1728379617750,2.3003,2425.9,2425.8,0.41228]
[1728379622565,2.811,2426.3,2426.2,0.41222]
[1728379622860,3.2107,2426.3,2426.2,0.41222]
[1728379625061,3.45728205,2426.3,2426.2,0.41222]
[1728379626364,1.8931,2426.4,2426.3,0.41221]
[1728379626564,2.2835,2426.4,2426.3,0.41221]
[1728379629461,0.7935,2426.4,2426.3,0.41221]
[1728379629763,1.49,2426.6,2426.1,1.03058]
[1728379629963,4.6978,2426.6,2426.5,0.41217]
[1728379631161,3.2078,2426.6,2426.5,0.41217]
[1728379632463,3.2078,2426.6,2426.5,4.53297]
[1728379633359,0.4025,2426.9,2426.8,0.41212]
[1728379633360,1.8925,2426.9,2426.8,0.41212]
[1728379634359,1.8925,2426.9,2426.8,0.80232]
[1728379635967,1.49,2426.9,2426.8,0.80232]
[1728379636463,5.36503926,2427.1,2426.8,0.3902]
[1728379636766,5.1151,2427.1,2427.0,0.41209]
[1728379639668,1.9073,2427.1,2427.0,0.41209]
[1728379649174,5.1151,2427.1,2427.0,0.41209]
[1728379652274,5.1151,2427.1,2426.7,0.4115]
[1728379652477,1.49,2426.8,2426.7,0.41214]
[1728379653879,4.6978,2426.8,2426.7,0.41214]
[1728379658284,5.1249,2426.8,2426.7,0.41214]
[1728379658688,3.2078,2426.8,2426.7,0.41214]
[1728379659186,3.2078,2426.8,2426.7,4.53294]
[1728379659581,3.2078,2426.8,2426.7,4.93004]
[1728379660876,1.49,2427.1,2426.7,4.5179]
[1728379661077,1.49,2427.1,2427.0,0.41209]
[1728379664195,4.6978,2427.1,2427.0,0.41209]
[1728379665588,0.41209,2427.0,2426.8,0.41212]
[1728379665798,1.49,2426.9,2426.8,0.41212]
[1728379665992,1.9106,2426.9,2426.8,0.41212]
[1728379666188,1.9106,2426.9,2426.4,1.44117]
[1728379666498,1.49,2426.5,2426.4,0.41219]
[1728379667191,1.9106,2426.5,2426.3,0.4122]
[1728379667395,3.6013,2426.4,2426.3,0.4122]
[1728379672202,3.9966,2426.4,2426.3,0.4122]
[1728379676715,3.6013,2426.4,2426.3,0.4122]
[1728379679811,3.2078,2426.4,2426.3,6.0238]
[1728379680603,3.2078,2426.4,2426.3,4.5338]
[1728379682611,3.2078,2426.4,2426.3,0.4122]
[1728379683114,1.73467829,2426.6,2426.5,0.41217]
[1728379689719,4.94247829,2426.6,2426.5,0.41217]
[1728379690903,9.47544829,2426.6,2426.3,0.4122]
[1728379691107,1.49,2426.4,2426.3,0.4122]
[1728379691614,1.885,2426.4,2426.3,0.4122]
[1728379692816,0.395,2426.4,2426.3,0.4122]
[1728379693115,1.885,2426.4,2426.3,0.4122]
[1728379694317,0.42,2426.5,2426.4,0.41219]
[1728379694621,0.4189,2426.6,2426.5,0.41217]
[1728379695212,4.0008,2426.9,2426.3,1.49]
[1728379695213,1.49,2426.8,2426.3,1.49]
[1728379695413,5.4768,2426.9,2426.8,0.41212]
[1728379699022,5.0897,2426.9,2426.8,0.41212]
[1728379699322,4.6978,2426.9,2426.8,0.41212]
[1728379701219,3.2078,2426.9,2426.8,0.41212]
[1728379701821,3.2078,2426.9,2426.8,4.53292]
[1728379702125,1.49,2427.1,2427.0,0.41209]
[1728379702622,1.49,2427.1,2426.8,1.03031]
[1728379702824,1.49,2427.1,2427.0,0.41209]
[1728379708029,4.6978,2427.1,2427.0,0.41209]
[1728379708425,4.6978,2427.1,2426.8,0.58809688]
[1728379708728,0.4007,2427.0,2426.9,0.41211]
[1728379713334,4.6978,2427.1,2426.7,1.42495]
[1728379713531,4.6978,2427.1,2427.0,0.41209]
[1728379714032,1.49,2427.1,2427.0,0.41209]
[1728379716522,0.4259,2427.2,2427.1,0.41207]
[1728379717125,0.4259,2427.2,2427.1,0.19922797]
[1728379742258,0.4259,2427.2,2427.0,2.26347828]
[1728379742259,0.4259,2427.2,2427.0,1.03007828]
[1728379742468,5.10987,2427.1,2427.0,1.03007828]
[1728379742770,4.76182931,2427.1,2427.0,0.91435494]
[1728379743961,4.6978,2427.1,2427.0,0.91435494]
[1728379744265,3.98609142,2427.1,2427.0,5.03435494]
[1728379744866,3.98609142,2427.1,2427.0,0.91435494]
[1728379745270,3.98609142,2427.1,2427.0,5.03435494]
[1728379746266,3.2078,2427.1,2427.0,5.03435494]
[1728379747568,3.2078,2427.1,2427.0,0.91435494]
[1728379748368,3.2078,2427.1,2427.0,5.03435494]
[1728379748574,3.2078,2427.1,2427.0,0.91435494]
[1728379748777,3.2078,2427.1,2427.0,5.03435494]
[1728379750067,3.2078,2427.1,2427.0,0.91435494]
[1728379755275,3.2078,2427.1,2427.0,5.03435494]
[1728379755874,3.2078,2427.1,2427.0,12.52435494]
[1728379756273,3.2078,2427.1,2427.0,6.52435494]
[1728379758982,3.2078,2427.1,2427.0,12.52435494]
[1728379760877,3.2078,2427.1,2427.0,8.40435494]
[1728379761077,3.2078,2427.1,2427.0,12.52435494]
[1728379761779,3.2078,2427.1,2427.0,13.33575494]
[1728379764180,0.4227,2427.4,2427.0,13.33575494]
[1728379764375,0.4227,2427.4,2427.3,0.41204]
[1728379766082,0.4043,2427.5,2427.2,1.911]
[1728379766275,0.4043,2427.5,2427.4,0.41202]
[1728379770784,0.4043,2427.5,2427.4,0.80462]
[1728379770985,0.4043,2427.5,2427.4,4.92382]
[1728379771687,0.4043,2427.5,2427.4,0.41202]
[1728379774493,0.4043,2427.5,2427.4,4.53122]
[1728379774790,0.8293,2427.6,2427.5,0.412]
[1728379774985,0.4195,2427.6,2427.5,0.8375]
[1728379775180,3.2078,2427.7,2427.5,0.8531]
[1728379775386,3.2078,2427.7,2427.6,0.41199]
[1728379775587,3.5945,2427.7,2427.6,0.41199]
[1728379779490,0.3867,2427.7,2427.6,0.41199]
[1728379782890,0.3867,2427.7,2427.6,4.53119]
[1728379783394,3.6028,2427.8,2427.6,4.1192]
[1728379783694,3.6028,2427.8,2427.7,1.90197]
[1728379783886,0.395,2427.8,2427.7,1.90197]
[1728379784287,0.4148,2427.9,2427.8,0.41195]
[1728379784697,0.4148,2427.9,2427.8,2.31605]
[1728379785195,0.4232,2428.1,2427.8,6.0233]
[1728379785399,0.8363,2428.1,2428.0,0.41192]
[1728379788895,0.8363,2428.1,2428.0,4.53032]
[1728379793207,0.4131,2428.1,2428.0,0.41192]
[1728379794906,3.2078,2428.2,2428.0,4.1184]
[1728379795105,3.2078,2428.2,2428.1,1.9019]
[1728379800908,0.8343,2428.3,2428.2,0.41188]
[1728379801112,0.8343,2428.3,2428.2,1.90188]
[1728379801611,0.4154,2428.3,2428.2,1.90188]
[1728379804209,0.4154,2428.3,2428.2,0.41188]
[1728379804405,12.08787691,2428.3,2428.0,0.41191]
[1728379804604,1.49,2428.0,2427.9,0.41192]
[1728379805010,6.02032,2428.0,2427.9,0.41194]
[1728379805205,5.6084,2428.0,2427.9,0.41194]
[1728379805411,1.8886,2428.0,2427.9,0.41194]
[1728379805607,0.3986,2428.0,2427.9,0.41194]
[1728379808711,0.3986,2428.0,2427.9,1.90194]
[1728379809009,0.3986,2428.0,2427.9,0.41194]
[1728379809418,0.3986,2428.0,2427.9,1.44163644]
[1728379809807,2.30052,2428.0,2427.9,1.44163644]
[1728379810112,1.8886,2428.0,2427.9,1.44163644]
[1728379810312,2.30052,2428.0,2427.9,1.44163644]
[1728379810614,1.8886,2428.0,2427.9,1.44163644]
[1728379811216,6.007,2428.0,2427.9,1.44163644]
[1728379811917,4.517,2428.0,2427.9,1.44163644]
[1728379812217,0.3986,2428.0,2427.9,1.44163644]
[1728379812416,4.517,2428.0,2427.9,1.44163644]
[1728379814428,0.3986,2428.0,2427.9,1.44163644]
[1728379817529,4.517,2428.0,2427.9,1.44163644]
[1728379818327,0.3986,2428.0,2427.9,1.44163644]
[1728379819026,3.6064,2428.0,2427.9,1.44163644]
[1728379823426,0.3986,2428.0,2427.9,1.44163644]
[1728379823640,3.6064,2428.0,2427.9,1.44163644]
[1728379827140,3.6705179,2428.0,2427.9,1.44163644]
[1728379828040,3.6064,2428.0,2427.9,1.44163644]
[1728379828337,0.3986,2428.0,2427.9,1.44163644]
[1728379828537,3.6064,2428.0,2427.9,1.44163644]
[1728379828739,3.67051406,2428.0,2427.9,1.44163644]
[1728379832237,3.2078,2428.3,2428.2,0.41188]
[1728379832539,4.008,2428.6,2428.2,0.41188]
[1728379832734,4.008,2428.6,2428.5,0.41183]
[1728379832935,4.07210452,2428.6,2428.5,0.20270522]
[1728379833731,4.008,2428.6,2428.5,0.20270522]
[1728379835040,3.2078,2428.6,2428.5,0.20270522]
[1728379835345,6.17286461,2428.8,2428.7,0.4118]
[1728379835346,5.92369511,2428.8,2428.7,0.4118]
[1728379836035,5.92369511,2428.8,2428.7,0.8371]
[1728379838640,3.2078,2429.0,2428.9,0.41177]
[1728379839750,3.2078,2429.0,2428.9,0.81847]
[1728379841048,3.2078,2429.0,2428.9,2.30847]
[1728379843340,0.4887,2429.4,2428.9,6.42527]
[1728379843540,0.63566263,2429.4,2429.3,0.4117]
[1728379843748,0.3927,2429.4,2429.3,0.4117]
[1728379843953,0.3927,2429.4,2429.3,1.2386]
[1728379845443,1.49,2429.5,2429.3,4.9429]
[1728379845642,1.8808,2429.5,2429.4,0.41168]
[1728379846945,0.3908,2429.5,2429.4,0.41168]
[1728379847143,1.49,2429.6,2429.5,0.41166]
[1728379848345,0.7968,2429.7,2429.3,0.8269]
[1728379848551,0.7968,2429.7,2429.6,0.41165]
[1728379849648,0.86086203,2429.7,2429.6,0.41165]
[1728379851151,0.86086203,2429.7,2429.3,0.8269]
[1728379851352,4.76186203,2429.6,2429.5,0.41165]
[1728379851553,4.76186203,2429.6,2429.5,0.19952896]
[1728379851752,0.06406203,2429.6,2429.5,0.19952896]
[1728379851954,3.27186203,2429.6,2429.5,0.19952896]
[1728379852553,3.2078,2429.6,2429.5,0.19952896]
[1728379852754,3.27186838,2429.6,2429.5,0.19952896]
[1728379855555,4.76186838,2429.6,2429.3,0.8269]
[1728379855756,0.06406838,2429.5,2429.4,0.41168]
[1728379856258,3.27186838,2429.5,2429.4,0.41168]
[1728379856457,0.06406838,2429.5,2429.4,0.41168]
[1728379856657,2.2868,2429.7,2429.6,0.41165]
[1728379856858,2.35087061,2429.7,2429.6,0.41165]
[1728379857651,2.2868,2429.7,2429.6,0.41165]
[1728379861054,0.4028,2429.7,2429.6,0.41165]
[1728379861264,3.5971,2430.0,2429.9,0.4116]
[1728379863162,5.0871,2430.0,2429.9,0.4116]
[1728379863361,3.5971,2430.0,2429.9,0.4116]
[1728379863665,0.3893,2430.0,2429.9,0.4116]
[1728379863956,3.5971,2430.0,2429.9,0.4116]
[1728379868371,5.0871,2430.0,2429.2,0.096]
[1728379868563,5.0871,2430.0,2429.5,0.41165]
[1728379868564,4.6978,2429.6,2429.5,0.41165]
[1728379868763,4.6978,2429.6,2429.4,0.41168]
[1728379868959,0.8232,2429.5,2429.3,1.24058]
[1728379869264,1.2389,2429.5,2429.3,0.8289]
[1728379869480,1.2389,2429.5,2429.4,0.41168]
[1728379871564,0.3965,2429.5,2429.4,0.41168]
[1728379871866,7.81519511,2429.7,2429.3,1.85815]
[1728379872169,7.81519511,2429.7,2429.6,0.41165]
[1728379873063,8.22682511,2429.7,2429.5,0.41165]
[1728379873274,3.2078,2429.6,2429.5,0.41165]
[1728379873769,10.62149511,2429.6,2429.5,0.41165]